Department Family,Entity,Date,Expense Type,Expense Area,Supplier,Transaction Number,VAT Registration Number,Purchase Invoice Number,AP Amount,,
Department of Health,Royal Papworth Hospital NHS Foundation Trust,3/31/2022,Transport,ECMO program,AMVALE MEDICAL TRANSPORT LTD,41597810,804885019,47594,"90,804.60",,
Department of Health,Royal Papworth Hospital NHS Foundation Trust,3/31/2022,Med Equip Additions,Balance Sheet,APC CARDIOVASCULAR LTD,41560950,563354635,947578,"63,382.84",,
Department of Health,Royal Papworth Hospital NHS Foundation Trust,3/31/2022,Extrnl Rehrge : Recivd,Clinical Perfusion,CAMBRIDGE PERFUSION SERVICES LLP,41696786,924492904,2165,"42,546.03",,
Department of Health,Royal Papworth Hospital NHS Foundation Trust,3/31/2022,Extrnl Rehrge : Recivd,ECMO program,CAMBRIDGE PERFUSION SERVICES LLP,41672061,924492904,2168,"35,856.85",,
Department of Health,Royal Papworth Hospital NHS Foundation Trust,3/31/2022,Extrnl Rehrge : Recivd,STA - Covid 19,CAMBRIDGE PERFUSION SERVICES LLP,41672065,924492904,2169,"36,651.47",,
Department of Health,Royal Papworth Hospital NHS Foundation Trust,3/31/2022,Vascular Implants,Vad,CAMBRIDGE PERFUSION SERVICES LLP,41696784,924492904,2171,"26,392.80",,
Department of Health,Royal Papworth Hospital NHS Foundation Trust,3/31/2022,Various,Various,CAMBRIDGE UNIVERSITY HOSPITALS NHS FOUNDATION TRUST,41554809,654910528,71000045,"483,617.00",,
Department of Health,Royal Papworth Hospital NHS Foundation Trust,3/31/2022,Various,Various,CAMBRIDGE UNIVERSITY HOSPITALS NHS FOUNDATION TRUST,41768806,654910528,71000138,"483,617.00",,
Department of Health,Royal Papworth Hospital NHS Foundation Trust,3/31/2022,Computer Maintenance,Sitewide I T,CINOS LTD,41473599,GB921993502,8995 I 2463,"348,835.19",,
Department of Health,Royal Papworth Hospital NHS Foundation Trust,3/31/2022,Asset Clearing,Balance Sheet,DELL CORPORATION LTD,41758453,635823528,109889082,"51,479.98",,
Department of Health,Royal Papworth Hospital NHS Foundation Trust,3/31/2022,Contr Estate Management,Engineering,DENVIL DEVELOPMENTS LTD,41485736,,15825022022,"38,472.00",,
Department of Health,Royal Papworth Hospital NHS Foundation Trust,3/31/2022,Professional Fees,Sitewide I T,DH OPCO UK LTD,41752156,372714884,5970001191,"50,000.00",,
Department of Health,Royal Papworth Hospital NHS Foundation Trust,3/31/2022,Electricity,Energy,EDF ENERGY 1 LTD,41427762,523041202,000011548868,"60,860.43",,
Department of Health,Royal Papworth Hospital NHS Foundation Trust,3/31/2022,Electricity,Energy,EDF ENERGY 1 LTD,41427754,523041202,000011556594,"81,957.29",,
Department of Health,Royal Papworth Hospital NHS Foundation Trust,3/31/2022,Electricity,Energy,EDF ENERGY 1 LTD,41621488,523041202,000011742159,"46,605.42",,
Department of Health,Royal Papworth Hospital NHS Foundation Trust,3/31/2022,Electricity,Energy,EDF ENERGY CUSTOMERS PLC,41621494,GB 523041202,000011718286,"69,113.00",,
Department of Health,Royal Papworth Hospital NHS Foundation Trust,3/31/2022,Heating Oil,Engineering,FLEETSOLVE LTD,41624904,,8789,"35,704.67",,
Department of Health,Royal Papworth Hospital NHS Foundation Trust,3/31/2022,Drugs,Balance Sheet,HEALTHCARE AT HOME LTD,41707898,873342418-1,HAH MAR CONS 01,"222,312.16",,
Department of Health,Royal Papworth Hospital NHS Foundation Trust,3/31/2022,Drugs,Balance Sheet,HEALTHCARE AT HOME LTD,41707899,873342418-1,HAH MAR CONS 02,"254,071.04",,
Department of Health,Royal Papworth Hospital NHS Foundation Trust,3/31/2022,Drugs,Balance Sheet,HEALTHCARE AT HOME LTD,41707900,873342418-1,HAH MAR CONS 03,"198,493.00",,
Department of Health,Royal Papworth Hospital NHS Foundation Trust,3/31/2022,Drugs,Balance Sheet,HEALTHCARE AT HOME LTD,41707901,873342418-1,HAH MAR CONS 04,"158,794.40",,
Department of Health,Royal Papworth Hospital NHS Foundation Trust,3/31/2022,Drugs,Balance Sheet,HEALTHCARE AT HOME LTD,41707902,873342418-1,HAH MAR CONS 05,"39,967.12",,
Department of Health,Royal Papworth Hospital NHS Foundation Trust,3/31/2022,Security Salary Costs,Building,HYDROP ENVIRONMENTAL CONSULTANCY SERVICES,41774693,580664326,IV24242,"71,277.30",,
Department of Health,Royal Papworth Hospital NHS Foundation Trust,3/31/2022,Income tax - Current,Balance Sheet,INLAND REVENUE CIS,41542609,,126PQ001177772211,"2,561,023.57",,
Department of Health,Royal Papworth Hospital NHS Foundation Trust,3/31/2022,Computer Maintenance,Sitewide I T,INSIGHT DIRECT (UK) LTD,41647507,746075129,2100155651,"294,288.10",,
Department of Health,Royal Papworth Hospital NHS Foundation Trust,3/31/2022,Asset Clearing,Balance Sheet,INSIGHT DIRECT (UK) LTD,41707621,746075129,2100167496,"29,335.68",,
Department of Health,Royal Papworth Hospital NHS Foundation Trust,3/31/2022,Asset Clearing,Balance Sheet,INSIGNIA MEDICAL SYSTEMS LTD,41804590,731784718,1468,"42,000.00",,
Department of Health,Royal Papworth Hospital NHS Foundation Trust,3/31/2022,Asset Clearing,Balance Sheet,INSIGNIA MEDICAL SYSTEMS LTD,41804591,731784718,1469,"120,000.00",,
Department of Health,Royal Papworth Hospital NHS Foundation Trust,3/31/2022,Asset Clearing,Balance Sheet,INSIGNIA MEDICAL SYSTEMS LTD,41804592,731784718,1470,"90,000.00",,
Department of Health,Royal Papworth Hospital NHS Foundation Trust,3/31/2022,Asset Clearing,Balance Sheet,INSIGNIA MEDICAL SYSTEMS LTD,41804593,731784718,1475,"150,000.00",,
Department of Health,Royal Papworth Hospital NHS Foundation Trust,3/31/2022,Asset Clearing,Balance Sheet,INSIGNIA MEDICAL SYSTEMS LTD,41804594,731784718,INV07697,"78,000.00",,
Department of Health,Royal Papworth Hospital NHS Foundation Trust,3/31/2022,Asset Clearing,Balance Sheet,INSIGNIA MEDICAL SYSTEMS LTD,41804595,731784718,INV07698,"93,600.00",,
Department of Health,Royal Papworth Hospital NHS Foundation Trust,3/31/2022,Audit Fees: Statutory,Finance,KPMG LLP,41786592,791788859,5502407512,"61,200.00",,
Department of Health,Royal Papworth Hospital NHS Foundation Trust,3/31/2022,Med & Surg Maint Contract,Critical Care - First Floor NPH,LIFTSAFE LTD,41532660,GB 768 0663 00,1594,"49,692.00",,
Department of Health,Royal Papworth Hospital NHS Foundation Trust,3/31/2022,Drugs,Balance Sheet,LLOYDS PHARMACY CLINICAL HOMECARE LTD,41707903,GB 222516987,LPCH MAR CONS04,"277,890.20",,
Department of Health,Royal Papworth Hospital NHS Foundation Trust,3/31/2022,Drugs,Balance Sheet,LLOYDS PHARMACY CLINICAL HOMECARE LTD,41707904,GB 222516987,LPCH MAR CONS05,"31,567.11",,
Department of Health,Royal Papworth Hospital NHS Foundation Trust,3/31/2022,Drugs,Balance Sheet,LLOYDS PHARMACY CLINICAL HOMECARE LTD,41809516,GB 222516987,LPCH MAR CONS06,"214,372.44",,
Department of Health,Royal Papworth Hospital NHS Foundation Trust,3/31/2022,Drugs,Balance Sheet,LLOYDS PHARMACY CLINICAL HOMECARE LTD,41809518,GB 222516987,LPCH MAR CONS07,"174,673.84",,
Department of Health,Royal Papworth Hospital NHS Foundation Trust,3/31/2022,Drugs,Balance Sheet,LLOYDS PHARMACY CLINICAL HOMECARE LTD,41623486,GB 222516987,LPCHMar22Cons01,"293,769.64",,
Department of Health,Royal Papworth Hospital NHS Foundation Trust,3/31/2022,Drugs,Balance Sheet,LLOYDS PHARMACY CLINICAL HOMECARE LTD,41623490,GB 222516987,LPCHMar22Cons02,"293,769.64",,
Department of Health,Royal Papworth Hospital NHS Foundation Trust,3/31/2022,Drugs,Balance Sheet,LLOYDS PHARMACY CLINICAL HOMECARE LTD,41623493,GB 222516987,LPCHMar22Cons03,"71,495.86",,
Department of Health,Royal Papworth Hospital NHS Foundation Trust,3/31/2022,Drugs,Balance Sheet,LLOYDS PHARMACY CLINICAL HOMECARE LTD,41809520,GB 222516987,LPCHMAR22CONS08,"222,312.16",,
Department of Health,Royal Papworth Hospital NHS Foundation Trust,3/31/2022,Drugs,Balance Sheet,LLOYDS PHARMACY CLINICAL HOMECARE LTD,41809523,GB 222516987,LPCHMAR22CONS09,"69,769.83",,
Department of Health,Royal Papworth Hospital NHS Foundation Trust,3/31/2022,Med & Surg Equip General,NIHR AI Award,MAGIC BULLET LTD,41732829,,1000795,"62,500.00",,
Department of Health,Royal Papworth Hospital NHS Foundation Trust,3/31/2022,Computer Software/License,Commissioning and Income,MBI HEALTHCARE TECHNOLOGIES LTD,41676570,157524303,INV0202,"32,400.00",,
Department of Health,Royal Papworth Hospital NHS Foundation Trust,3/31/2022,External Consultancy Fees,Human Resources,MEDLED LTD,41670600,GB286836646,409,"21,000.00",,
Department of Health,Royal Papworth Hospital NHS Foundation Trust,3/31/2022,Agency Admin & Clerical,Operations Directorate,MERIDIAN PRODUCTIVITY LTD,41712001,699646356,199101,"149,054.76",,
Department of Health,Royal Papworth Hospital NHS Foundation Trust,3/31/2022,Agency Admin & Clerical,Operations Directorate,MERIDIAN PRODUCTIVITY LTD,41774707,699646356,199102,"124,188.34",,
Department of Health,Royal Papworth Hospital NHS Foundation Trust,3/31/2022,Bldg Ctrcts - PFI Svc Chg,Interest / Divis / P&L On Fas,NPH HEALTHCARE LTD,41631215,,SI1504,"1,239,027.89",,
Department of Health,Royal Papworth Hospital NHS Foundation Trust,3/31/2022,Drugs,Balance Sheet,POLAR SPEED DISTRIBUTION LTD,41707897,849745765,PS MAR CONS 08,"31,622.50",,
Department of Health,Royal Papworth Hospital NHS Foundation Trust,3/31/2022,Drugs,Balance Sheet,POLAR SPEED DISTRIBUTION LTD,41623483,849745765,PSMarchCons,"29,815.50",,
Department of Health,Royal Papworth Hospital NHS Foundation Trust,3/31/2022,Drugs,Balance Sheet,POLAR SPEED DISTRIBUTION LTD,41623470,849745765,PSMarchCons01,"41,529.09",,
Department of Health,Royal Papworth Hospital NHS Foundation Trust,3/31/2022,Drugs,Balance Sheet,POLAR SPEED DISTRIBUTION LTD,41623476,849745765,PSMarchCons02,"32,526.00",,
Department of Health,Royal Papworth Hospital NHS Foundation Trust,3/31/2022,Drugs,Balance Sheet,POLAR SPEED DISTRIBUTION LTD,41623479,849745765,PSMarchCons03,"29,815.50",,
Department of Health,Royal Papworth Hospital NHS Foundation Trust,3/31/2022,Professional Fees,Finance,PRICEWATERHOUSECOOPERS LLP,41501350,GB 243823957,1355742266,"49,900.00",,
Department of Health,Royal Papworth Hospital NHS Foundation Trust,3/31/2022,Computer Maintenance,Clinical Govern & Risk Mngmnt,SPECIALIST COMPUTER CENTRES PLC,41722606,313651680,OPN133823,"31,334.66",,
Department of Health,Royal Papworth Hospital NHS Foundation Trust,3/31/2022,Med Equip Additions,Balance Sheet,SPECTRUM MEDICAL LTD,41377194,,CEM00141,"100,000.00",,
Department of Health,Royal Papworth Hospital NHS Foundation Trust,3/31/2022,Professional Fees,Sitewide I T,STHREE PARTNERSHIP LLP,41806590,GB 743795691,010093224904,"96,840.00",,
Department of Health,Royal Papworth Hospital NHS Foundation Trust,3/31/2022,Med & Surg Equip General,Thoracic Directorate,STOWOOD SCIENTIFIC INSTRUMENTS,41732826,596335405,24002,"28,442.87",,
Department of Health,Royal Papworth Hospital NHS Foundation Trust,3/31/2022,Other Liabilities - Curr,Balance Sheet,SUPPLY CHAIN COORDINATION LIMITED,41440395,290885854,1122223564,"586,690.27",,
Department of Health,Royal Papworth Hospital NHS Foundation Trust,3/31/2022,Other Liabilities - Curr,Balance Sheet,SUPPLY CHAIN COORDINATION LIMITED,41522591,290885854,1122227402,"409,065.78",,
Department of Health,Royal Papworth Hospital NHS Foundation Trust,3/31/2022,Other Liabilities - Curr,Balance Sheet,SUPPLY CHAIN COORDINATION LIMITED,41631211,290885854,1122234323,"555,585.38",,
Department of Health,Royal Papworth Hospital NHS Foundation Trust,3/31/2022,Other Liabilities - Curr,Balance Sheet,SUPPLY CHAIN COORDINATION LIMITED,41706018,290885854,1122239765,"748,920.93",,
Department of Health,Royal Papworth Hospital NHS Foundation Trust,3/31/2022,Other Liabilities - Curr,Balance Sheet,SUPPLY CHAIN COORDINATION LIMITED,41805780,290885854,1122244929,"399,737.05",,
Department of Health,Royal Papworth Hospital NHS Foundation Trust,3/31/2022,Med & Surg Maint Contract,Radiography,SUPPLY CHAIN COORDINATION LIMITED,41455160,290885854,2122007090,"88,181.67",,
Department of Health,Royal Papworth Hospital NHS Foundation Trust,3/31/2022,Med & Surg Maint Contract,Radiography,SUPPLY CHAIN COORDINATION LIMITED,41473160,290885854,2122007709,"573,739.89",,
Department of Health,Royal Papworth Hospital NHS Foundation Trust,3/31/2022,Med & Surg Maint Contract,Radiography,SUPPLY CHAIN COORDINATION LIMITED,41473165,290885854,2122007710,"346,122.68",,
Department of Health,Royal Papworth Hospital NHS Foundation Trust,3/31/2022,Cleaning Equipment,Engineering,SUPPLY CHAIN COORDINATION LIMITED,41523375,290885854,2122007711,"40,794.92",,
Department of Health,Royal Papworth Hospital NHS Foundation Trust,3/31/2022,Char Fund Contra Acc Curr,Balance Sheet,UNIVERSITY OF CAMBRIDGE,41454651,GB 823847609,AP1138409,"1,000,000.00",,
